bitfinex-derivatives/quotes_BTCF0:USTF0_20251103
["timestamp","ask_amount","ask_price","bid_price","bid_amount"]
[1762210506161,1.40554686,106490.0,106480.0,0.04428]
[1762210506364,1.40554686,106490.0,106480.0,0.0227]
[1762210506560,1.40554686,106490.0,106480.0,0.04428]
[1762210507666,1.40754686,106490.0,106480.0,0.04428]
[1762210509066,0.139808,106480.0,106470.0,0.05786]
[1762210509268,0.71218576,106480.0,106470.0,0.05786]
[1762210509961,0.72128212,106480.0,106470.0,0.05786]
[1762210510575,0.72228212,106480.0,106470.0,0.05786]
[1762210511760,0.1398168,106470.0,106460.0,0.03949525]
[1762210511965,0.71219456,106470.0,106460.0,0.06107525]
[1762210513673,0.71219456,106470.0,106460.0,0.06207525]
[1762210514567,0.71219456,106470.0,106460.0,0.00421525]
[1762210514568,1.04423456,106470.0,106460.0,0.00421525]
[1762210515474,1.15002344,106470.0,106460.0,0.00421525]
[1762210515974,1.04423456,106470.0,106460.0,0.00421525]
[1762210516673,1.11754722,106470.0,106460.0,0.00421525]
[1762210516878,1.35234722,106470.0,106460.0,0.00321525]
[1762210517068,1.35334722,106470.0,106460.0,0.00321525]
[1762210517268,1.11854722,106470.0,106460.0,0.00321525]
[1762210517582,0.1391445,106450.0,106440.0,0.05901]
[1762210517875,0.71152226,106450.0,106440.0,0.05901]
[1762210518269,0.71152226,106450.0,106430.0,0.4332017]
[1762210518270,1.6239733,106440.0,106430.0,0.04543]
[1762210518469,2.18977354,106440.0,106430.0,0.05888]
[1762210518672,2.18988811,106440.0,106430.0,0.05888]
[1762210519879,2.18888811,106440.0,106430.0,0.05888]
[1762210520472,2.19088811,106440.0,106430.0,0.05888]
[1762210521383,0.1391622,106430.0,106420.0,0.00310078]
[1762210521684,0.93224732,106430.0,106420.0,0.02635078]
[1762210521879,0.93224732,106430.0,106420.0,0.06198078]
[1762210522591,0.93224732,106430.0,106420.0,0.02635078]
[1762210522777,0.93864732,106430.0,106420.0,0.02635078]
[1762210523175,0.93864732,106430.0,106420.0,0.00310078]
[1762210523683,0.94764135,106430.0,106420.0,0.00310078]
[1762210523886,0.94764135,106430.0,106420.0,0.04853078]
[1762210524185,0.94764135,106430.0,106420.0,0.00310078]
[1762210524772,0.52101915,106430.0,106420.0,0.15597188]
[1762210524973,0.15133969,106440.0,106430.0,0.1528623]
[1762210525279,0.04529457,106440.0,106430.0,0.5136623]
[1762210526175,0.14026797,106440.0,106430.0,0.5136623]
[1762210527275,0.24631309,106440.0,106430.0,0.4914822]
[1762210527471,0.24631309,106440.0,106430.0,0.5136622]
[1762210532778,0.14026797,106440.0,106430.0,0.5136622]
[1762210533089,0.24631309,106440.0,106430.0,0.5136622]
[1762210542091,0.63042109,106440.0,106430.0,0.05888]
[1762210543095,0.63042109,106440.0,106430.0,0.1528621]
[1762210546698,0.1391721,106430.0,106420.0,0.15447108]
[1762210546993,0.25727521,106430.0,106420.0,0.15447108]
[1762210548091,0.48869009,106430.0,106420.0,0.02599078]
[1762210548400,0.64970901,106430.0,106420.0,0.02599078]
[1762210548698,0.64970901,106430.0,106420.0,0.04703078]
[1762210549591,0.64970901,106430.0,106420.0,0.00310078]
[1762210549794,0.64970901,106430.0,106420.0,0.02599078]
[1762210550000,0.64970901,106430.0,106420.0,0.04703078]
[1762210550399,0.88462901,106430.0,106420.0,0.00310078]
[1762210550599,0.64970901,106430.0,106420.0,0.00310078]
[1762210550792,0.99067413,106430.0,106420.0,0.00310078]
[1762210551000,0.94349096,106430.0,106420.0,0.00310078]
[1762210551291,0.999079,106430.0,106420.0,0.00310078]
[1762210552290,0.999079,106430.0,106420.0,0.00410078]
[1762210552291,1.02729225,106430.0,106420.0,0.00410078]
[1762210553105,0.1395198,106410.0,106400.0,0.04393]
[1762210553304,0.1333486,106400.0,106390.0,0.38368]
[1762210553504,0.24648372,106400.0,106390.0,0.34877]
[1762210553896,0.24648372,106400.0,106390.0,0.02289]
[1762210554098,0.63058545,106400.0,106390.0,0.04393]
[1762210554297,0.1333576,106390.0,106380.0,0.38688385]
[1762210554607,0.59920272,106390.0,106380.0,0.38688385]
[1762210555304,0.59920272,106390.0,106380.0,0.38692385]
[1762210555500,0.59920272,106390.0,106380.0,0.38792385]
[1762210555907,0.60849575,106390.0,106380.0,0.38792385]
[1762210556510,0.60849575,106390.0,106380.0,0.36688385]
[1762210556912,0.72104049,106390.0,106380.0,0.02709385]
[1762210557114,0.72104049,106390.0,106380.0,0.06200385]
[1762210557115,0.60859537,106390.0,106380.0,0.06200385]
[1762210558410,0.61059537,106390.0,106380.0,0.06200385]
[1762210560815,0.71664049,106390.0,106380.0,0.06200385]
[1762210561116,0.71664049,106390.0,106380.0,0.04813385]
[1762210562315,0.61059537,106390.0,106380.0,0.15602895]
[1762210562713,0.51757777,106390.0,106380.0,0.48194895]
[1762210563311,0.15677777,106390.0,106380.0,0.48194895]
[1762210563519,0.25079397,106390.0,106380.0,0.48194895]
[1762210564011,0.14474885,106390.0,106380.0,0.48194895]
[1762210564320,0.25079397,106390.0,106380.0,0.48194895]
[1762210564619,0.25079397,106390.0,106380.0,0.84274895]
[1762210565019,0.14474885,106390.0,106380.0,0.84274895]
[1762210565219,0.25079397,106390.0,106380.0,0.84274895]
[1762210567617,0.24981599,106390.0,106380.0,0.84274895]
[1762210568120,0.24052296,106390.0,106380.0,0.84274895]
[1762210568320,0.14650676,106390.0,106380.0,0.84274895]
[1762210568521,0.24052296,106390.0,106380.0,0.84274895]
[1762210571621,0.24972482,106390.0,106380.0,0.84274895]
[1762210572321,0.1436797,106390.0,106380.0,0.84274895]
[1762210572724,0.24972482,106390.0,106380.0,0.84274895]
[1762210574028,0.24972482,106390.0,106380.0,0.48194895]
[1762210574228,0.24972482,106390.0,106380.0,0.38792385]
[1762210574430,0.24972482,106390.0,106380.0,0.48194895]
[1762210578234,0.24972482,106390.0,106380.0,0.84274895]
[1762210579928,0.23005482,106390.0,106380.0,0.48194895]
[1762210580135,0.24874482,106390.0,106380.0,0.84274895]
[1762210580333,0.24881398,106390.0,106380.0,0.84274895]
[1762210581026,0.1426997,106390.0,106380.0,0.84274895]
[1762210581431,0.24881398,106390.0,106380.0,0.84274895]
[1762210581724,0.24881398,106390.0,106380.0,0.84274845]
[1762210582533,0.24881398,106390.0,106380.0,0.48194845]
[1762210584238,0.35492826,106390.0,106380.0,0.48194845]
[1762210591648,0.24881398,106390.0,106380.0,0.48194845]
[1762210591845,0.35492826,106390.0,106380.0,0.48194845]
[1762210596147,0.37833316,106390.0,106380.0,0.48194845]
[1762210596335,0.37833316,106390.0,106380.0,0.54897569]
[1762210596540,0.35492826,106390.0,106380.0,0.54897569]
[1762210598247,0.35492826,106390.0,106380.0,0.45606109]
[1762210598445,0.71572826,106390.0,106380.0,0.45606109]
[1762210599853,0.73913236,106390.0,106380.0,0.38903385]
[1762210600653,0.73913236,106390.0,106380.0,0.36684385]
[1762210600955,0.73913236,106390.0,106380.0,0.38903385]
[1762210603347,0.71572826,106390.0,106380.0,0.38903385]
[1762210608456,0.71572826,106390.0,106380.0,0.48305905]
[1762210609355,0.71572826,106390.0,106380.0,0.38903385]
[1762210610352,0.5034997,106390.0,106380.0,0.38903385]
[1762210610551,0.57223196,106390.0,106380.0,0.38903385]
[1762210610752,0.71572624,106390.0,106380.0,0.48305905]
[1762210611450,0.67834624,106390.0,106380.0,0.48305905]
[1762210611651,0.57223196,106390.0,106380.0,0.48305905]
[1762210612566,0.59092196,106390.0,106380.0,0.48305905]
[1762210612857,0.60961196,106390.0,106380.0,0.48305905]
[1762210614850,0.23012196,106390.0,106380.0,0.48305905]
[1762210615051,0.24881196,106390.0,106380.0,0.55008629]
[1762210615450,0.24881196,106390.0,106380.0,0.55008619]
[1762210616260,0.35492624,106390.0,106380.0,0.55008619]
[1762210620161,0.14269768,106390.0,106380.0,0.55008619]
[1762210620457,0.35492624,106390.0,106380.0,0.55008619]
[1762210623760,0.35492624,106390.0,106380.0,0.45606109]
[1762210623964,0.71572624,106390.0,106380.0,0.45606109]
[1762210624167,0.71572624,106390.0,106380.0,0.55008619]
[1762210627764,0.71572624,106390.0,106380.0,0.45598109]
[1762210628562,0.71572624,106390.0,106380.0,0.38895385]
[1762210629769,0.71572624,106390.0,106380.0,0.45663843]
[1762210636380,0.60961196,106390.0,106380.0,0.45663843]
[1762210636675,0.71572624,106390.0,106380.0,0.45663843]
[1762210637877,0.71572624,106390.0,106380.0,0.13083843]
[1762210638181,0.71572624,106390.0,106380.0,0.45659843]
[1762210640487,0.60962882,106390.0,106380.0,0.45659843]
[1762210644382,0.63303524,106390.0,106380.0,0.38891385]
[1762210645786,0.60962882,106390.0,106380.0,0.38891385]
[1762210646391,0.60962882,106390.0,106380.0,0.48293915]
[1762210647082,0.63303509,106390.0,106380.0,0.48293915]
[1762210647579,0.10823076,106390.0,106380.0,0.48293915]
[1762210647984,0.56093894,106400.0,106390.0,0.05628]
[1762210648187,0.38420876,106400.0,106390.0,0.1502964]
[1762210648492,0.3608,106400.0,106390.0,0.21798098]
[1762210648988,0.60251634,106410.0,106400.0,0.1502876]
[1762210649187,0.60251634,106410.0,106400.0,0.54362019]
[1762210649381,0.60251634,106410.0,106400.0,0.4759676]
[1762210651091,0.24171634,106410.0,106400.0,0.4759676]
[1762210651291,0.24271634,106410.0,106400.0,0.4769676]
[1762210652292,0.20113634,106410.0,106400.0,0.4769676]
[1762210652480,0.10713114,106410.0,106400.0,0.4769676]
[1762210652684,0.12792114,106410.0,106400.0,0.4769676]
[1762210653195,0.10713114,106410.0,106400.0,0.4769676]
[1762210653393,0.10713114,106410.0,106400.0,0.8377676]
[1762210653692,0.001,106410.0,106400.0,0.8377676]
[1762210653892,0.46693114,106430.0,106410.0,0.0939961]
[1762210654196,0.4963583,106440.0,106430.0,0.1502611]
[1762210654494,0.24168944,106440.0,106430.0,0.1502611]
[1762210655492,0.24668944,106440.0,106430.0,0.1512611]
[1762210655693,0.25609635,106440.0,106430.0,0.1512611]
[1762210656686,0.14996521,106440.0,106430.0,0.1502611]
[1762210656895,0.25309635,106440.0,106430.0,0.1512611]
[1762210661503,0.35922749,106440.0,106430.0,0.1512611]
[1762210665702,0.25309635,106440.0,106430.0,0.1512611]
[1762210674404,0.15911805,106440.0,106430.0,0.1512611]
[1762210675502,0.25309035,106440.0,106430.0,0.1512611]
[1762210676312,0.04358,106440.0,106430.0,0.1512611]
[1762210676804,0.04358,106440.0,106430.0,0.5120611]
[1762210678502,0.02279,106440.0,106430.0,0.5120611]
[1762210679106,0.04358,106440.0,106430.0,0.5120611]
[1762210683510,0.002,106440.0,106430.0,0.5120611]
[1762210686416,1.60613114,106450.0,106440.0,0.1540223]
[1762210686618,0.12943938,106450.0,106440.0,0.8401823]
[1762210687017,0.10613114,106450.0,106440.0,0.8401823]
[1762210687218,2.10246864,106460.0,106450.0,0.1540135]
[1762210687417,2.12577482,106460.0,106450.0,0.1540135]
[1762210687719,2.03181732,106460.0,106450.0,0.1540135]
[1762210687920,1.67101732,106460.0,106450.0,0.5148135]
[1762210688121,1.64771114,106460.0,106450.0,0.5148135]
[1762210688421,1.64771114,106460.0,106450.0,0.52416301]
[1762210688617,0.56761144,106480.0,106470.0,0.04608]
[1762210688821,0.55695867,106480.0,106470.0,0.4793558]
[1762210689212,2.03162669,106480.0,106470.0,0.4793558]
[1762210689414,1.92549555,106480.0,106470.0,0.4793558]
[1762210689709,1.90538,106480.0,106470.0,0.4803558]
[1762210689914,1.54458,106480.0,106470.0,0.4803558]
[1762210690420,1.54458,106480.0,106470.0,0.8411558]
[1762210691318,0.04458,106480.0,106470.0,0.8411558]
[1762210694719,0.04258,106480.0,106470.0,0.8401558]
[1762210695113,0.02179,106480.0,106470.0,0.8401558]
[1762210695525,0.04336,106480.0,106470.0,0.8401558]
[1762210696017,0.02179,106480.0,106470.0,0.8401558]
[1762210696421,0.001,106480.0,106470.0,0.8401558]
[1762210697122,1.503,106490.0,106470.0,0.8401558]
[1762210697324,0.3608,106500.0,106490.0,0.1515282]
[1762210697515,0.25417102,106510.0,106500.0,0.1515194]
[1762210697715,0.16025732,106510.0,106500.0,0.1515194]
[1762210698111,0.25416782,106510.0,106500.0,0.1515194]
[1762210699024,0.25616782,106510.0,106500.0,0.1515194]
[1762210699523,0.16225732,106510.0,106500.0,0.1515194]
[1762210699826,0.25616792,106510.0,106500.0,0.1515194]
[1762210700418,0.25591136,106510.0,106500.0,0.1515194]
[1762210700613,0.05612618,106510.0,106500.0,0.1515194]
[1762210700826,0.16200076,106510.0,106500.0,0.1515194]
[1762210701121,0.16200076,106510.0,106500.0,0.5123194]
[1762210701521,0.16200076,106510.0,106500.0,0.1515194]
[1762210702122,0.10787458,106510.0,106500.0,0.1515194]
[1762210702324,0.002,106510.0,106500.0,0.72406856]
[1762210702522,0.1201255,106530.0,106520.0,0.1383617]
[1762210702728,0.15367458,106530.0,106520.0,0.4767017]
[1762210703423,0.25658663,106530.0,106520.0,0.4767017]
[1762210703621,1.66269373,106530.0,106520.0,0.4767017]
[1762210704027,1.75658663,106530.0,106520.0,0.4767017]
[1762210704218,1.75658663,106530.0,106520.0,0.4777017]
[1762210704418,1.76058663,106530.0,106520.0,0.4777017]
[1762210704623,1.66669373,106530.0,106520.0,0.4777017]
[1762210705032,1.5518,106530.0,106520.0,0.4777017]
[1762210705425,1.65767458,106530.0,106520.0,0.8385017]
[1762210706321,1.75156738,106530.0,106520.0,0.8385017]
[1762210706726,2.23648024,106530.0,106520.0,0.001]
[1762210706924,2.23648024,106530.0,106520.0,0.32616]
[1762210707120,2.23648024,106530.0,106510.0,0.0576]
[1762210707121,0.1387017,106520.0,106510.0,0.0576]
[1762210707424,0.71125086,106520.0,106510.0,0.38272]
[1762210708031,0.71125086,106520.0,106510.0,0.4766305]
[1762210708328,0.5005017,106520.0,106510.0,0.4766305]
[1762210708536,0.71225086,106520.0,106510.0,0.4766305]
[1762210712037,0.61834916,106520.0,106510.0,0.4766305]
[1762210712537,0.35145086,106520.0,106510.0,0.4766305]
[1762210712837,0.24557628,106520.0,106510.0,0.4766305]
[1762210715237,0.35145086,106520.0,106510.0,0.4766305]
[1762210715734,0.1370906,106510.0,106500.0,0.04315]
[1762210715924,0.1370994,106500.0,106490.0,0.05629]
[1762210716125,0.71484856,106500.0,106490.0,0.36823]
[1762210716524,0.70964856,106500.0,106490.0,0.38103]
[1762210717030,0.70964856,106500.0,106490.0,0.38203]
[1762210718136,0.70964856,106500.0,106490.0,0.38103]
[1762210718338,0.71164856,106500.0,106490.0,0.38103]
[1762210718739,0.71164856,106500.0,106490.0,0.4749581]
[1762210719143,0.71164856,106500.0,106490.0,0.38103]
[1762210720242,0.71164856,106500.0,106490.0,0.4749582]
[1762210721142,0.71164856,106500.0,106490.0,0.38103]
[1762210721734,0.71164856,106500.0,106490.0,0.4749582]
[1762210722041,0.71164856,106500.0,106490.0,0.38103]
[1762210723143,0.73457527,106500.0,106490.0,0.38103]
[1762210723343,0.71164856,106500.0,106490.0,0.38103]
[1762210723544,0.73457385,106500.0,106490.0,0.38103]
[1762210728047,0.1387382,106490.0,106480.0,0.4753812]
[1762210728251,0.35048736,106490.0,106480.0,0.4753812]
[1762210729949,0.35048736,106490.0,106480.0,0.38145]
[1762210730249,0.71128736,106490.0,106480.0,0.38145]
[1762210731045,0.72037229,106490.0,106480.0,0.38145]
[1762210732147,0.72237229,106490.0,106480.0,0.38145]
[1762210733358,0.51062313,106490.0,106480.0,0.38145]
[1762210733658,0.72237229,106490.0,106480.0,0.38145]
[1762210733848,0.72237229,106490.0,106480.0,0.475387]
[1762210736255,0.72237229,106490.0,106480.0,0.38145]
[1762210736454,0.72237229,106490.0,106480.0,0.475387]
[1762210736656,0.74528797,106490.0,106480.0,0.475387]
[1762210737556,0.74528797,106490.0,106480.0,0.38145]
[1762210737756,0.74528797,106490.0,106480.0,0.475387]
[1762210737956,0.63941339,106490.0,106480.0,0.475387]
[1762210741966,0.61649771,106490.0,106480.0,0.475387]
[1762210744364,0.25569771,106490.0,106480.0,0.475387]
[1762210744563,0.1517335,106490.0,106480.0,0.475387]
[1762210744764,0.10587458,106490.0,106480.0,0.58126158]
[1762210744965,0.46667458,106500.0,106490.0,0.1509681]
[1762210745160,0.1288249,106500.0,106490.0,0.25684268]
[1762210745471,0.10587458,106500.0,106490.0,0.61764268]
[1762210746274,0.10787458,106500.0,106490.0,0.61764268]
[1762210747175,0.10787458,106500.0,106490.0,0.5117681]
[1762210748771,0.10787458,106500.0,106490.0,0.57942069]
[1762210749076,0.10787458,106500.0,106490.0,0.58858067]
[1762210750876,0.10787458,106500.0,106490.0,0.69445525]
[1762210751476,0.10787458,106500.0,106490.0,0.62680266]
[1762210753780,0.10587458,106510.0,106500.0,0.1509593]
[1762210753966,0.12878458,106510.0,106500.0,0.8367993]
[1762210754472,0.15068458,106510.0,106500.0,0.8367993]
[1762210754881,0.15368458,106510.0,106500.0,0.8367993]
[1762210757180,0.15068458,106510.0,106500.0,0.8367993]
[1762210757479,0.15068458,106510.0,106500.0,0.8387993]
[1762210760386,0.04481,106510.0,106500.0,0.8387993]
[1762210761183,0.02291,106510.0,106500.0,0.8387993]
[1762210761581,0.23109648,106520.0,106510.0,0.04413]
[1762210761882,0.25242648,106520.0,106510.0,0.05782]
[1762210762285,0.25242648,106520.0,106510.0,0.1517306]
[1762210763380,0.25242648,106520.0,106510.0,0.1527306]
[1762210764585,0.25242648,106520.0,106510.0,0.5135306]
[1762210764890,0.15852458,106520.0,106510.0,0.5135306]
[1762210766181,1.96966105,106530.0,106520.0,0.1517222]
[1762210766387,1.96966105,106530.0,106520.0,0.4766822]
[1762210767085,1.60886105,106530.0,106520.0,0.8374822]
[1762210767481,1.60986105,106530.0,106520.0,0.8374822]
[1762210767784,1.61922742,106530.0,106520.0,0.8374822]
[1762210768586,1.60986105,106530.0,106520.0,0.8374822]
[1762210770780,1.60986105,106530.0,106520.0,0.84691274]
[1762210771279,1.60986105,106530.0,106520.0,0.8374822]
[1762210772688,1.504,106530.0,106520.0,0.8374822]
[1762210774587,1.504,106530.0,106520.0,0.84690439]
[1762210775388,0.0252,106530.0,106520.0,0.84690439]
[1762210775581,0.0242,106530.0,106520.0,0.84990439]
[1762210775781,0.04637,106530.0,106520.0,0.91755698]
[1762210775981,0.04637,106530.0,106520.0,0.84690439]
[1762210776178,0.04637,106530.0,106520.0,0.84890439]
[1762210776991,0.0242,106530.0,106520.0,0.84890439]
[1762210777192,0.003,106530.0,106520.0,0.84890439]
[1762210783596,0.0242,106530.0,106520.0,0.84890439]
[1762210783792,0.04637,106530.0,106520.0,0.84890439]
[1762210784498,0.003,106530.0,106520.0,0.84890439]
[1762210784700,0.02471,106530.0,106520.0,0.84890439]
[1762210784900,0.003,106530.0,106520.0,0.84890439]
[1762210785294,0.02471,106530.0,106520.0,0.84890439]
[1762210785587,0.003,106530.0,106520.0,0.84890439]
[1762210785794,0.02471,106530.0,106520.0,0.84890439]
[1762210786193,0.003,106530.0,106520.0,0.84890439]
[1762210786700,0.02471,106530.0,106520.0,0.84890439]
[1762210787304,0.04646,106530.0,106520.0,0.84890439]
[1762210787804,0.04646,106530.0,106520.0,0.8394822]
[1762210788404,0.02471,106530.0,106520.0,0.8394822]
[1762210790399,0.02471,106530.0,106520.0,0.90713479]
[1762210790792,0.04646,106530.0,106520.0,0.90713479]
[1762210793708,0.04646,106530.0,106520.0,0.8394822]
[1762210794798,0.02471,106530.0,106520.0,0.8394822]
[1762210796608,0.003,106530.0,106520.0,0.8394822]
[1762210797308,0.003,106530.0,106520.0,0.90713479]
[1762210800713,0.04646,106530.0,106520.0,0.90713479]
[1762210801904,0.04646,106530.0,106520.0,0.58217479]
[1762210802105,0.04646,106530.0,106520.0,0.90693479]
[1762210804809,0.04646,106530.0,106520.0,0.8382822]
[1762210805316,0.04646,106530.0,106520.0,0.92288792]
[1762210805708,0.04646,106530.0,106520.0,0.8382822]
[1762210806216,0.1403532,106530.0,106520.0,0.8382822]
[1762210806815,0.1403532,106530.0,106520.0,0.92288792]
[1762210808210,0.04646,106530.0,106520.0,0.92288792]
[1762210810016,0.04646,106530.0,106520.0,0.99050897]
[1762210810213,0.04646,106530.0,106520.0,0.90590325]
[1762210810609,0.15232105,106530.0,106520.0,0.90590325]
[1762210810822,0.04646,106530.0,106520.0,0.90590325]
[1762210811022,0.1403532,106530.0,106520.0,0.90590325]
[1762210812223,0.24621425,106530.0,106520.0,0.90590325]
[1762210814420,0.1403532,106530.0,106520.0,0.90590325]
[1762210816516,0.24621425,106530.0,106520.0,0.12644105]
[1762210816719,0.7233753,106530.0,106520.0,0.06862105]
[1762210816917,0.1395408,106510.0,106500.0,0.45178105]
[1762210817216,1.74540185,106510.0,106500.0,0.05944]
[1762210817424,2.10620185,106510.0,106500.0,0.45178105]
[1762210817727,2.11529185,106510.0,106500.0,0.38416]
[1762210817928,2.13840422,106510.0,106500.0,0.38416]
[1762210818123,2.11529185,106510.0,106500.0,0.38416]
[1762210818626,1.76848969,106510.0,106500.0,0.4780796]
[1762210818828,1.76848969,106510.0,106500.0,0.38416]
[1762210818829,2.11529185,106510.0,106500.0,0.38416]
[1762210819129,2.10620185,106510.0,106500.0,0.38416]
[1762210819530,2.10820185,106510.0,106500.0,0.38416]
[1762210820423,2.12640453,106510.0,106500.0,0.38416]
[1762210820623,2.12640453,106510.0,106500.0,0.04559]
[1762210820928,2.12640453,106510.0,106500.0,0.37031]
[1762210822432,2.23235544,106510.0,106500.0,0.37031]
[1762210824727,2.23235544,106510.0,106500.0,0.04559]
[1762210829939,2.23235544,106510.0,106490.0,0.1499219]
[1762210829940,0.1368094,106500.0,106490.0,0.1499219]
[1762210830136,0.70942136,106500.0,106490.0,0.4746883]
[1762210831440,0.70942136,106500.0,106490.0,0.1499283]
[1762210831642,0.70942136,106500.0,106490.0,0.4746883]
[1762210831939,0.71042136,106500.0,106490.0,0.4746883]
[1762210832727,0.71042136,106500.0,106490.0,0.38076]
[1762210832939,0.71562136,106500.0,106490.0,0.04215]
[1762210833140,0.1368183,106490.0,106480.0,0.0557]
[1762210833436,0.70943026,106490.0,106480.0,0.38046]
[1762210835138,0.71993026,106490.0,106480.0,0.36691]
[1762210835337,0.1368271,106480.0,106470.0,0.0557]
[1762210835538,0.70943906,106480.0,106470.0,0.38046]
[1762210835839,0.71243906,106480.0,106470.0,0.04215]
[1762210836036,0.71243906,106480.0,106470.0,0.02107]
[1762210836632,0.71243906,106480.0,106470.0,0.02207]
[1762210836837,0.71243906,106480.0,106470.0,0.001]
[1762210837032,0.71243906,106480.0,106470.0,0.02207]
[1762210837229,0.81834504,106480.0,106470.0,0.001]
[1762210837437,1.05314504,106480.0,106470.0,0.001]
[1762210838442,0.1459259,106470.0,106460.0,8.139e-05]
[1762210838636,1.04329786,106470.0,106460.0,8.139e-05]
[1762210838839,0.1368536,106450.0,106440.0,0.38085]
[1762210839029,1.07026556,106450.0,106440.0,0.38085]
[1762210839230,1.07026556,106450.0,106420.0,0.47182758]
[1762210839231,0.1368713,106430.0,106420.0,0.83873758]
[1762210839834,0.24287469,106430.0,106420.0,0.83873758]
[1762210841644,0.14889339,106430.0,106420.0,0.83873758]
[1762210841850,0.14889339,106430.0,106420.0,0.83973758]
[1762210842033,0.24287479,106430.0,106420.0,0.83973758]
[1762210842239,0.24287479,106430.0,106420.0,0.47893758]
[1762210843438,0.14889339,106430.0,106420.0,0.47893758]
[1762210843638,0.24287479,106430.0,106420.0,0.47893758]
[1762210846134,0.24287479,106430.0,106420.0,0.15417758]
[1762210846336,0.24287479,106430.0,106420.0,0.02517078]
[1762210846337,1.04351077,106430.0,106420.0,0.02517078]
[1762210846550,1.04351077,106430.0,106420.0,0.00410078]
[1762210846847,1.27843077,106430.0,106420.0,0.00410078]
[1762210847144,1.40750937,106430.0,106420.0,0.00218217]
[1762210847352,0.147209,106410.0,106400.0,0.04399]
[1762210847542,1.47896532,106410.0,106400.0,0.04399]
[1762210847950,1.47905751,106410.0,106400.0,0.04399]
[1762210848346,1.47905751,106410.0,106400.0,0.02261]
[1762210848645,0.1367267,106390.0,106380.0,0.06101965]
[1762210848850,0.70933866,106390.0,106380.0,0.06101965]
[1762210849052,1.03421866,106390.0,106380.0,0.06101965]
[1762210849550,0.8224067,106390.0,106380.0,0.06101965]
[1762210849745,1.03421866,106390.0,106380.0,0.06101965]
[1762210849943,1.04375083,106390.0,106380.0,0.06301965]
[1762210850543,1.05284083,106390.0,106380.0,0.06301965]
[1762210853154,1.41364083,106390.0,106380.0,0.06301965]
[1762210854248,1.41364083,106390.0,106380.0,0.04915965]
[1762210854453,1.41364083,106390.0,106380.0,0.02777965]
[1762210854647,1.41364083,106390.0,106380.0,0.04915965]
[1762210855044,1.41364083,106390.0,106380.0,0.00516965]
[1762210855446,1.41364083,106390.0,106380.0,0.04715965]
[1762210855646,1.41464083,106390.0,106380.0,0.04715965]
[1762210855843,1.41464083,106390.0,106380.0,0.02577965]
[1762210856047,1.41464083,106390.0,106380.0,0.00316965]
[1762210856367,1.41464083,106390.0,106380.0,0.02577965]
[1762210856551,1.41464083,106390.0,106380.0,0.00316965]
[1762210856751,1.52063076,106390.0,106380.0,0.00316965]
[1762210856947,1.41472478,106390.0,106380.0,0.00316965]
[1762210857347,1.20291282,106390.0,106380.0,0.02577965]
[1762210857542,1.41472478,106390.0,106380.0,0.00316965]
[1762210859755,0.02101,106360.0,106350.0,0.7937077]
[1762210859958,0.04271,106360.0,106350.0,0.4768977]
[1762210860156,0.25452196,106360.0,106350.0,0.8376977]
[1762210860759,0.14861598,106360.0,106350.0,0.8376977]
[1762210861153,0.04271,106360.0,106350.0,0.8376977]
[1762210861452,0.14861598,106360.0,106350.0,0.8376977]
[1762210861757,0.34856526,106360.0,106350.0,0.8396977]
[1762210862156,0.24265928,106360.0,106350.0,0.8396977]
[1762210862652,0.34856526,106360.0,106350.0,0.8396977]
[1762210862961,0.25452196,106360.0,106350.0,0.8396977]
[1762210863260,0.34856526,106360.0,106350.0,0.8396977]
[1762210863463,0.32686526,106360.0,106350.0,0.8396977]
[1762210863759,0.34856526,106360.0,106350.0,0.8396977]
[1762210864458,0.25452196,106360.0,106350.0,0.8396977]
[1762210864852,0.04271,106360.0,106350.0,0.8396977]
[1762210865050,0.14861598,106360.0,106350.0,0.8396977]
[1762210865249,0.24265928,106360.0,106350.0,0.4788977]
[1762210865449,0.14861598,106360.0,106350.0,0.4788977]
[1762210865660,0.25452196,106360.0,106350.0,0.4788977]
[1762210866257,0.34856526,106360.0,106350.0,0.4788977]
[1762210866961,0.1367533,106360.0,106350.0,0.4788977]
[1762210867154,0.14861598,106360.0,106350.0,0.4788977]
[1762210867757,0.25452196,106360.0,106350.0,0.4788977]
[1762210868762,0.14861598,106360.0,106350.0,0.4788977]
[1762210869064,0.34856526,106360.0,106350.0,0.4788977]
[1762210870062,0.1367533,106360.0,106350.0,0.4768977]
[1762210870358,0.34856526,106360.0,106350.0,0.4768977]
[1762210873664,0.34856526,106360.0,106350.0,0.1518977]
[1762210878257,0.34856526,106360.0,106350.0,0.05785]
[1762210878560,0.34856526,106360.0,106350.0,0.1519023]
[1762210881757,0.37169526,106360.0,106350.0,0.1519023]
[1762210884472,0.26605566,106360.0,106350.0,0.1519023]
[1762210888168,0.26614717,106360.0,106350.0,0.1519023]
[1762210888473,0.26614717,106360.0,106350.0,0.05785]
[1762210888474,0.62694717,106360.0,106350.0,0.05785]
[1762210888873,0.52077481,106360.0,106350.0,0.05785]
[1762210889268,0.62694717,106360.0,106350.0,0.05785]
[1762210889870,0.62694717,106360.0,106350.0,0.1519024]
[1762210891270,0.62694717,106360.0,106350.0,0.05785]
[1762210892574,0.62694717,106360.0,106350.0,0.1519024]
[1762210893577,0.61421838,106360.0,106350.0,0.1519024]
[1762210894078,0.52077481,106360.0,106350.0,0.1519024]
[1762210894381,0.61421838,106360.0,106350.0,0.1519024]
[1762210897173,0.59108838,106360.0,106350.0,0.1519024]
[1762210897484,0.6141717,106360.0,106350.0,0.05785]
[1762210897778,0.6209217,106360.0,106350.0,0.04399]
[1762210898582,1.6374024,106350.0,106340.0,0.15606761]
[1762210898778,1.73084597,106350.0,106340.0,0.15606761]
[1762210899383,2.15845954,106350.0,106340.0,0.00310311]
[1762210899581,2.41661267,106350.0,106340.0,0.00310311]
[1762210899878,2.44188896,106350.0,106340.0,0.00410311]
[1762210900176,2.44188896,106350.0,106320.0,0.01386]
[1762210900177,0.1374201,106330.0,106320.0,0.05891]
[1762210900376,0.55600964,106330.0,106320.0,0.05891]
[1762210900574,0.68041935,106330.0,106320.0,0.04505]
[1762210900772,0.1160589,106320.0,106310.0,0.33812494]
[1762210900976,0.32431604,106320.0,106310.0,0.05809494]
[1762210901177,0.33106604,106320.0,106310.0,0.04515494]
[1762210901481,0.33106604,106320.0,106310.0,0.02200494]
[1762210901678,0.33106604,106320.0,106310.0,0.00010494]
[1762210901888,0.35415193,106320.0,106310.0,0.00210494]
[1762210902275,0.33106604,106320.0,106310.0,0.00010494]
[1762210902482,0.34058378,106320.0,106310.0,0.00110494]
[1762210903280,0.57574378,106320.0,106310.0,0.00110494]
[1762210903878,1.6454178,106310.0,106300.0,0.00310428]
[1762210904081,2.39254494,106310.0,106300.0,0.00310428]
[1762210904276,2.39254494,106310.0,106300.0,4.28e-06]
[1762210904477,0.1330943,106280.0,106270.0,0.41768]
[1762210904682,0.55175318,106280.0,106270.0,0.41768]